bitfinex-derivatives/quotes_ETHF0:USTF0_20251210
["timestamp","ask_amount","ask_price","bid_price","bid_amount"]
[1765371603564,2.68069792,3322.5,3322.4,3.2078]
[1765371603754,1.4379,3321.9,3321.8,4.5811]
[1765371603950,1.4379,3321.9,3321.8,3.21029473]
[1765371603951,1.44126315,3321.9,3321.8,3.21029473]
[1765371605062,0.00336315,3321.9,3321.8,4.58359473]
[1765371605261,3.2078,3322.6,3322.5,1.3733]
[1765371605458,4.6457,3322.6,3322.5,1.3733]
[1765371605659,3.937,3322.6,3322.5,1.7842]
[1765371606156,4.6457,3322.6,3322.0,0.56139]
[1765371606356,4.6457,3322.6,3321.8,3.89839473]
[1765371606357,1.4379,3321.9,3321.8,3.89839473]
[1765371606561,1.4379,3321.9,3321.8,0.00249473]
[1765371607258,0.432,3322.0,3320.8,4.5811]
[1765371607259,0.4295,3321.5,3320.8,4.5811]
[1765371607464,3.2078,3321.4,3320.8,4.5811]
[1765371608058,3.937,3321.4,3321.3,1.3733]
[1765371608371,4.6457,3321.4,3321.3,0.6918498]
[1765371608965,4.6457,3321.4,3321.3,1.3876498]
[1765371609262,1.37321433,3321.7,3321.6,0.6862]
[1765371609473,1.37321433,3321.7,3321.3,0.0037498]
[1765371609961,0.00451433,3321.7,3321.6,1.382]
[1765371610361,0.67311433,3321.7,3321.6,1.382]
[1765371611265,0.00451433,3321.7,3321.6,1.382]
[1765371612158,3.2078,3322.7,3322.5,1.7851]
[1765371612355,3.2078,3323.1,3322.5,1.7851]
[1765371612556,3.2078,3323.1,3322.5,1.93557]
[1765371612756,3.2078,3323.1,3323.0,1.7851]
[1765371612965,3.2078,3323.1,3323.0,1.382]
[1765371612966,3.8764,3323.1,3323.0,1.382]
[1765371613265,3.2078,3323.1,3323.0,1.7851]
[1765371613668,3.8764,3323.1,3323.0,1.7851]
[1765371613859,3.2115082,3323.1,3323.0,1.7851]
[1765371614053,0.0037082,3323.1,3323.0,1.7851]
[1765371614964,0.0037082,3323.1,3323.0,1.93555]
[1765371619668,0.6686,3323.0,3322.9,4.5898]
[1765371619867,0.6723082,3323.1,3323.0,1.382]
[1765371620063,0.0037082,3323.1,3323.0,1.7851]
[1765371621461,1.7754,3323.0,3322.9,3.2078]
[1765371621764,1.7754,3322.5,3322.4,3.2078]
[1765371622169,1.7754,3322.5,3321.9,3.2078]
[1765371622467,0.6686,3322.0,3321.9,4.5898]
[1765371622668,0.4067,3322.5,3321.9,4.5898]
[1765371623066,0.4067,3322.5,3322.0,0.4031]
[1765371623267,0.81574498,3322.9,3322.0,0.4031]
[1765371623974,8.41574498,3322.9,3322.0,0.4031]
[1765371624271,1.3687,3322.1,3322.0,0.6862]
[1765371624869,0.6686,3322.1,3322.0,0.6862]
[1765371625066,0.6686,3322.1,3322.0,1.382]
[1765371625262,0.4067,3322.5,3321.9,4.5898]
[1765371626374,0.4067,3322.5,3322.0,0.4031]
[1765371627374,0.6686,3322.1,3322.0,1.7851]
[1765371627562,0.4067,3322.5,3322.0,1.7851]
[1765371627764,1.22487327,3322.5,3322.0,1.7851]
[1765371628468,0.6686,3322.1,3322.0,1.382]
[1765371628771,1.3696,3322.1,3322.0,0.6862]
[1765371628972,2.19056783,3322.1,3322.0,0.6862]
[1765371629165,2.19056107,3322.1,3322.0,1.3615]
[1765371629675,0.82096107,3322.1,3322.0,1.7638]
[1765371629875,1.3799,3322.5,3322.4,0.6975]
[1765371630172,2.20157991,3322.5,3322.4,0.6975]
[1765371630576,2.20157991,3322.5,3322.4,1.3728]
[1765371630777,2.20157991,3322.5,3322.4,0.6975]
[1765371631280,2.20157991,3322.5,3322.0,0.4023]
[1765371631467,2.20157991,3322.4,3322.3,0.6975]
[1765371632478,1.50057991,3322.4,3322.3,1.3728]
[1765371634271,2.20157991,3322.4,3322.3,1.3728]
[1765371634972,2.20157991,3322.4,3321.9,3.2078]
[1765371634973,1.3799,3322.0,3321.9,3.2078]
[1765371635172,1.3799,3322.0,3321.9,3.9053]
[1765371635481,0.6789,3322.0,3321.9,4.5806]
[1765371635680,1.3799,3322.5,3322.4,0.6975]
[1765371635879,2.19906432,3322.5,3322.4,0.6975]
[1765371636280,2.19906432,3322.5,3322.0,0.55279]
[1765371636578,2.19906432,3322.4,3322.3,0.6975]
[1765371636779,1.49806432,3322.4,3322.3,1.3728]
[1765371636980,1.49806432,3322.4,3322.3,4.5806]
[1765371639281,2.19906432,3322.4,3322.3,4.5806]
[1765371640581,2.19906432,3322.4,3322.3,3.2078]
[1765371640882,2.19906432,3322.4,3322.3,3.9053]
[1765371641277,0.81916432,3322.4,3322.3,4.5806]
[1765371641484,1.49806432,3322.4,3322.3,4.5806]
[1765371641682,2.19906432,3322.4,3322.3,4.5806]
[1765371646479,1.49806432,3322.4,3322.3,4.5806]
[1765371646788,2.19906432,3322.4,3322.3,4.5806]
[1765371650788,1.49806432,3322.4,3322.3,6.05991761]
[1765371651088,2.19906432,3322.4,3322.3,6.05991761]
[1765371651681,0.81916432,3322.4,3322.3,6.05991761]
[1765371652775,0.81916432,3322.4,3322.3,4.73108]
[1765371652974,2.19906432,3322.4,3322.3,4.73108]
[1765371653492,2.19906432,3322.4,3322.3,4.05578]
[1765371654500,2.19906432,3322.4,3322.3,4.73108]
[1765371654684,1.49806432,3322.4,3322.3,4.73108]
[1765371654989,2.19906432,3322.4,3322.3,4.73108]
[1765371656284,2.19906432,3322.4,3322.3,3.35828]
[1765371657190,2.19906432,3322.4,3322.3,4.05578]
[1765371657989,2.19906432,3322.4,3322.3,3.2078]
[1765371658992,2.19906432,3322.4,3322.3,1.4609]
[1765371659193,2.19906432,3322.4,3322.3,0.734]
[1765371659894,1.414,3322.2,3322.1,1.61139]
[1765371660090,0.81916432,3322.3,3322.1,1.61139]
[1765371660295,0.81916432,3322.2,3322.1,1.61139]
[1765371660697,0.81916432,3322.8,3322.1,1.61139]
[1765371660896,1.414,3322.4,3322.3,4.6687]
[1765371661297,1.53656432,3322.4,3322.3,4.6687]
[1765371661800,0.81916432,3322.4,3322.3,4.6687]
[1765371662099,1.414,3322.8,3322.7,1.4609]
[1765371662298,2.22544806,3322.8,3322.7,1.4609]
[1765371662493,2.22544806,3322.8,3322.7,0.734]
[1765371662702,1.414,3322.4,3322.3,4.09228]
[1765371662900,2.22544806,3322.4,3322.3,4.81918]
[1765371664801,2.22544806,3322.4,3322.3,0.734]
[1765371665096,1.414,3321.7,3321.6,0.0030142]
[1765371665296,5.73397615,3322.5,3321.6,0.0030142]
[1765371665297,3.9252,3321.8,3321.6,0.0030142]
[1765371665496,0.81144806,3321.7,3321.6,1.4639142]
[1765371665696,2.22544806,3321.7,3321.6,1.4639142]
[1765371665894,1.62351365,3322.6,3322.0,0.15049]
[1765371666091,3.2078,3322.8,3322.5,1.4609]
[1765371666296,3.9252,3322.8,3322.7,1.4609]
[1765371666903,0.7174,3323.0,3322.9,1.4609]
[1765371667207,0.7211082,3323.1,3323.0,1.4609]
[1765371667400,0.0037082,3323.1,3323.0,1.4609]
[1765371667700,0.0037082,3323.1,3323.0,1.864]
[1765371668092,1.4467082,3323.1,3323.0,1.4609]
[1765371668291,0.0037082,3323.1,3323.0,1.4609]
[1765371669204,0.6805082,3323.1,3323.0,1.4609]
[1765371670004,1.4061082,3323.1,3323.0,1.4609]
[1765371671104,0.6805082,3323.1,3323.0,1.4609]
[1765371672005,0.0037082,3323.1,3323.0,1.4609]
[1765371672705,0.6805082,3323.1,3323.0,2.78903532]
[1765371672903,1.4061082,3323.1,3323.0,2.78903532]
[1765371674706,1.4061082,3323.1,3322.9,3.2078]
[1765371674999,1.4061082,3323.1,3322.9,1.39]
[1765371675000,1.8076,3323.0,3322.9,1.39]
[1765371675201,0.6768,3323.0,3322.9,1.39]
[1765371675402,0.6805082,3323.1,3323.0,1.39]
[1765371675606,1.4061082,3323.1,3323.0,1.39]
[1765371677105,0.6768,3322.7,3322.6,0.83087]
[1765371677312,1.4024,3322.7,3322.6,0.83087]
[1765371677505,1.4024,3322.7,3322.6,1.54047]
[1765371677808,0.0037082,3323.1,3323.0,1.39]
[1765371678012,2.19703135,3323.1,3323.0,1.39]
[1765371678708,1.47143135,3323.1,3323.0,1.39]
[1765371678906,2.19703135,3323.1,3323.0,0.6804]
[1765371679107,2.19703135,3323.1,3323.0,1.39]
[1765371679308,0.6805082,3323.1,3323.0,1.39]
[1765371679709,1.4061082,3323.1,3323.0,1.39]
[1765371680010,0.0037082,3323.1,3323.0,1.7986]
[1765371680212,5.0098,3324.0,3323.9,0.6804]
[1765371680506,5.80045238,3324.0,3323.9,1.39]
[1765371681211,4.67756608,3324.0,3323.9,1.39338406]
[1765371681409,5.40316608,3324.0,3323.9,1.39338406]
[1765371681609,4.00076608,3324.0,3323.9,1.54379406]
[1765371681807,0.0023137,3324.0,3323.9,1.54379406]
[1765371682009,0.8133475,3324.4,3324.3,1.54039]
[1765371682317,4.6102,3324.9,3324.8,1.39]
[1765371682806,3.2078,3324.9,3324.8,1.39]
[1765371683008,3.88717706,3324.9,3324.8,1.39]
[1765371683906,4.61277706,3324.9,3324.8,1.39]
[1765371684607,3.21037706,3324.9,3324.8,1.39]
[1765371684809,0.00257706,3324.9,3324.8,1.39]
[1765371685310,0.67937706,3324.9,3324.8,1.39]
[1765371685613,0.00257706,3324.9,3324.8,1.39]
[1765371685811,0.00257706,3324.9,3324.8,3.42211766]
[1765371686114,0.67937706,3324.9,3324.8,1.39]
[1765371686317,0.00257706,3324.9,3324.8,1.39]
[1765371690117,1.35597706,3324.9,3324.8,1.3822]
[1765371690320,0.67937706,3324.9,3324.8,1.3822]
[1765371690518,0.00257706,3324.9,3324.8,1.3822]
[1765371690921,0.68797706,3324.9,3324.8,1.3822]
[1765371691115,1.36457706,3324.9,3324.8,1.3822]
[1765371691315,1.362,3324.7,3324.6,1.54678]
[1765371691621,0.6854,3324.7,3324.6,1.54678]
[1765371691809,1.36457706,3324.9,3324.8,1.3964]
[1765371692823,0.00257706,3324.9,3324.8,1.3964]
[1765371693322,0.00257706,3324.9,3324.8,1.54677]
[1765371694722,0.00257706,3324.9,3324.8,2.87346657]
[1765371695313,0.00257706,3324.9,3324.8,4.20016314]
[1765371695525,3.2078,3325.3,3325.2,1.4275]
[1765371695723,1.4197,3325.7,3325.6,0.735]
[1765371696616,0.00245767,3325.7,3325.3,2.7587109]
[1765371696815,1.4197,3325.4,3325.3,2.7587109]
[1765371697822,0.7305,3325.4,3325.3,2.7587109]
[1765371698825,0.7305,3325.4,3325.3,1.43201433]
[1765371699530,1.4197,3325.4,3325.3,0.00451433]
[1765371704429,2.21128096,3325.4,3325.3,0.00451433]
[1765371705629,3.2078,3325.6,3325.4,0.6925]
[1765371705833,3.2078,3325.6,3325.3,0.00451433]
[1765371705834,3.2078,3325.6,3325.5,3.12930629]
[1765371706026,4.6275,3325.6,3325.5,2.72070629]
[1765371706227,3.9383,3325.6,3325.5,2.72070629]
[1765371706427,4.6275,3325.6,3325.5,1.4275]
[1765371706737,4.6275,3325.6,3325.5,0.735]
[1765371707238,1.4197,3325.4,3325.3,0.00451433]
[1765371707426,2.21257618,3325.4,3325.3,0.00451433]
[1765371707735,1.8544,3324.0,3323.9,4.63868406]
[1765371707934,1.8544,3324.0,3323.9,0.73838406]
[1765371708141,1.8544,3324.0,3323.9,0.00338406]
[1765371708339,5.85584743,3324.0,3323.9,0.00338406]
[1765371712338,5.85584743,3324.0,3323.9,0.73838406]
[1765371712540,5.85584743,3324.0,3323.9,0.00338406]
[1765371714239,5.0622,3324.0,3323.9,0.00338406]
[1765371715335,5.0622,3324.0,3323.9,1.43088406]
[1765371715534,5.0622,3324.0,3323.9,0.73838406]
[1765371717640,5.0622,3324.0,3323.9,0.00338406]
[1765371718638,1.3634,3323.2,3323.1,4.6617]
[1765371719843,1.36695672,3323.2,3323.1,4.66482499]
[1765371720650,1.36695672,3323.2,3323.1,3.93522499]
[1765371721041,0.69125672,3323.2,3323.1,4.66482499]
[1765371721746,0.00355672,3323.2,3323.1,4.66482499]
[1765371724545,1.36695672,3323.2,3323.1,4.66482499]
[1765371725250,1.36695672,3323.2,3323.1,0.00312499]
[1765371725744,1.3634,3322.8,3322.7,3.2078]
[1765371725942,1.3634,3322.8,3322.3,0.15048]
[1765371725943,1.3634,3322.4,3322.3,3.2078]
[1765371726445,1.3634,3322.4,3322.3,3.9321]
[1765371726744,1.3634,3322.4,3322.3,4.66486582]
[1765371727047,1.3634,3322.4,3322.3,3.93526582]
[1765371727446,1.3634,3322.4,3322.3,4.66486582]
[1765371729155,1.3634,3322.4,3322.3,3.21096582]
[1765371729357,1.3634,3322.4,3322.3,0.72746582]
[1765371730160,1.3634,3322.4,3322.3,1.45706582]
[1765371730546,1.3634,3322.4,3322.3,0.72746582]
[1765371730857,1.3634,3322.4,3322.3,0.00316582]
[1765371731558,1.3634,3322.4,3322.3,0.72746582]
[1765371732154,1.3634,3322.4,3322.3,0.00316582]
[1765371734258,3.641,3323.0,3322.5,1.3944]
[1765371734448,4.9884,3323.0,3322.9,1.3944]
[1765371734853,3.2078,3323.0,3322.9,1.3944]
[1765371735054,0.00355672,3323.2,3323.1,1.3944]
[1765371735363,0.00355672,3323.2,3323.1,1.54484]
[1765371736160,0.00355672,3323.2,3323.1,4.75264]
[1765371736464,1.1111,3324.0,3323.9,1.3944]
[1765371737068,0.6764,3324.0,3323.9,1.3944]
[1765371737371,0.67989262,3324.0,3323.9,1.3944]
[1765371739271,0.00349262,3324.0,3323.9,1.3944]
[1765371739973,0.00349262,3324.0,3323.9,4.75261]
[1765371740467,3.2078,3324.6,3324.5,1.3944]
[1765371740669,0.4266,3325.0,3324.5,1.3944]
[1765371740867,1.90285973,3325.0,3324.9,1.3944]
[1765371741062,3.6344,3325.5,3324.9,1.3944]
[1765371741271,0.79979229,3325.4,3324.9,1.3944]
[1765371741772,2.15036335,3325.4,3325.3,0.6883]
[1765371742065,1.35057106,3325.4,3325.3,1.3944]
[1765371743468,0.00317106,3325.4,3325.3,1.3944]
[1765371743670,3.8842,3325.9,3325.8,1.3944]
[1765371743871,0.6764,3325.9,3325.8,1.3944]
[1765371744065,0.6764,3325.9,3325.8,0.6883]
[1765371744066,1.3474,3325.9,3325.8,0.6883]
[1765371744372,1.3474,3325.7,3325.6,3.35813]
[1765371744673,0.67949279,3325.7,3325.6,4.75253]
[1765371744863,0.00309279,3325.7,3325.6,4.75253]
[1765371745370,1.35049279,3325.7,3325.6,4.04643]
[1765371745570,1.35049279,3325.7,3325.6,3.35813]
[1765371745870,1.35049279,3325.7,3325.6,4.04643]
[1765371746564,1.35049279,3325.7,3325.6,4.75253]
[1765371747171,0.67949279,3325.7,3325.6,4.75253]
[1765371747662,1.35049279,3325.7,3325.6,4.75253]
[1765371748462,0.67409279,3325.7,3325.2,3.2078]
[1765371748666,1.422,3325.3,3325.2,3.2078]
[1765371749268,0.00309279,3325.7,3325.6,1.4078]
[1765371749462,0.70569279,3325.7,3325.6,1.4078]
[1765371749769,1.42509279,3325.7,3325.6,0.6946]
[1765371750367,0.00309279,3325.7,3325.6,1.4078]
[1765371751274,1.42509279,3325.7,3325.2,3.2078]
[1765371751872,0.7026,3325.3,3325.2,4.6156]
[1765371752064,1.422,3325.3,3325.2,3.9024]
[1765371752269,1.837,3325.5,3325.4,0.6946]
[1765371752470,1.1176,3325.5,3325.4,1.4078]
[1765371752869,0.7026,3325.5,3325.4,1.4078]
[1765371753169,1.42509279,3325.7,3325.6,0.6946]
[1765371753577,0.70569279,3325.7,3325.6,1.4078]
[1765371753776,1.42509279,3325.7,3325.6,1.4078]
[1765371754371,0.00309279,3325.7,3325.6,1.4078]
[1765371754572,0.00309279,3325.7,3325.6,4.6156]
[1765371757576,0.00309279,3325.7,3325.6,4.76593]
[1765371760478,1.42509279,3325.7,3325.6,4.76593]
[1765371761284,0.70569279,3325.7,3325.6,4.76593]
[1765371761977,0.00309279,3325.7,3325.6,4.76593]
[1765371763587,0.00309279,3325.7,3325.6,6.79529155]
[1765371763783,1.8486,3326.5,3326.4,1.4078]
[1765371764089,3.2078,3327.2,3326.9,0.6946]
[1765371764090,1.8486,3327.0,3326.9,0.6946]
[1765371764382,2.66636398,3327.0,3326.4,3.2078]
[1765371764590,2.23976398,3326.9,3326.8,0.6946]
[1765371764887,2.24316345,3326.9,3326.8,1.4078]
[1765371765188,1.52376345,3326.9,3326.8,1.4078]
[1765371765489,3.2078,3328.3,3328.2,0.6946]
[1765371765674,4.6298,3328.3,3327.7,0.15024]
[1765371765874,4.6298,3328.3,3327.7,1.55804]
[1765371765875,0.7026,3327.8,3327.7,1.55804]
[1765371766081,1.837,3328.0,3327.9,0.6946]
[1765371766482,0.41760113,3328.0,3327.5,4.6156]
[1765371766680,1.12020113,3328.0,3327.9,1.4078]
[1765371766880,1.83960113,3328.0,3327.9,0.6946]
[1765371767182,0.00260113,3328.0,3327.9,1.55803]
[1765371767583,0.70520113,3328.0,3327.9,1.55803]
[1765371767982,0.00260113,3328.0,3327.9,1.55803]
[1765371768490,1.422,3327.8,3327.7,11.2386]
[1765371768979,0.7026,3327.8,3327.7,11.9518]
[1765371769292,0.7026,3327.8,3327.7,1.4078]
[1765371769483,0.00260113,3328.0,3327.9,1.4078]
[1765371769684,0.00260113,3328.0,3327.9,6.79519155]
[1765371769882,0.00260113,3328.0,3327.9,13.60983]
[1765371770387,0.00260113,3328.0,3327.9,4.76583]
[1765371770683,1.83960113,3328.0,3327.9,3.9024]
[1765371770885,1.83960113,3328.0,3327.9,3.2078]
[1765371771284,1.83960113,3328.0,3327.5,0.00211489]
[1765371771285,1.422,3327.6,3327.5,0.00211489]
[1765371772184,1.422,3327.6,3326.9,3.2078]
[1765371772484,1.837,3327.0,3326.9,3.2078]
[1765371773296,1.837,3327.0,3326.9,3.21111685]
[1765371774591,3.2078,3327.4,3327.2,1.4078]
[1765371774592,2.32611365,3327.3,3327.2,1.4078]
[1765371774797,1.8103,3327.5,3327.0,0.15027]
[1765371775089,0.41760113,3328.0,3327.4,4.6189]
[1765371775290,0.41760113,3328.0,3326.9,2.0326784]
[1765371775291,1.8008,3327.5,3327.0,3.2078]
[1765371775690,0.7242,3327.1,3327.0,3.9346]
[1765371775897,1.3953,3327.1,3327.0,3.2078]
[1765371776294,0.7242,3327.1,3327.0,4.6189]
[1765371776484,0.4055,3327.5,3327.0,4.6189]
[1765371776684,1.3953,3327.7,3327.6,0.7268]
[1765371776889,1.80340113,3328.0,3327.2,2.02936155]
[1765371777089,1.80340113,3328.0,3327.1,3.2078]
[1765371777395,0.7894327,3327.9,3327.1,3.2078]
[1765371777595,0.7894327,3327.8,3327.1,3.2078]
[1765371777791,0.7894327,3327.7,3327.1,3.2078]
[1765371777992,1.5136327,3327.6,3327.5,0.7268]
[1765371778189,0.433,3327.5,3327.1,3.2078]
[1765371778391,1.2224327,3327.5,3327.1,3.2078]
[1765371778591,0.433,3327.5,3327.1,3.2078]
[1765371779191,1.3459,3327.2,3327.1,3.9321]
[1765371779394,1.3459,3327.2,3327.1,3.2078]
[1765371779588,1.3459,3327.2,3327.1,3.9321]
[1765371779790,2.13126128,3327.2,3327.1,0.7243]
[1765371780191,0.78536128,3327.2,3327.1,4.81576]
[1765371780489,0.00260113,3328.0,3327.9,1.4577]
[1765371780692,0.00260113,3328.0,3327.9,6.69486155]
[1765371781193,0.00450674,3328.3,3328.2,1.4577]
[1765371781496,0.68470674,3328.3,3328.2,0.7243]
[1765371781686,0.00450674,3328.3,3328.2,1.4577]
[1765371782291,0.00724671,3328.3,3328.2,1.4577]
[1765371783395,0.00724671,3328.3,3328.2,1.60791]
[1765371783798,0.00322554,3328.3,3328.2,1.60791]
[1765371787401,0.68342554,3328.3,3328.2,1.60791]
[1765371788101,0.00322554,3328.3,3328.2,1.60791]
[1765371789205,1.34912554,3328.3,3328.2,0.15021]
[1765371789508,1.1132,3328.0,3327.9,4.6655]
[1765371789803,1.34912554,3328.3,3328.2,0.7243]
[1765371790198,0.68342554,3328.3,3328.2,1.4577]
[1765371790898,1.34912554,3328.3,3328.2,1.4577]
[1765371791211,0.00322554,3328.3,3328.2,1.4577]
[1765371791605,0.00322554,3328.3,3328.2,1.60791]
[1765371792309,2.554e-05,3328.3,3328.2,1.60791]
[1765371794802,2.554e-05,3328.3,3328.2,6.74691]
[1765371795710,0.77254989,3329.1,3328.5,1.6033]
[1765371795915,3.2078,3330.1,3329.4,1.4531]
[1765371796098,0.77274014,3330.0,3329.9,1.4531]
[1765371796304,2.56944014,3330.0,3329.9,0.7236]
[1765371796504,2.58455514,3330.0,3329.6,3.2078]
[1765371796802,1.3586,3329.7,3329.6,3.2108021]
[1765371797202,1.43844014,3329.7,3329.6,1.4561021]
[1765371797407,1.45355514,3329.7,3329.6,1.4561021]
[1765371797710,2.14645514,3329.7,3329.6,1.4561021]
[1765371797903,2.14645514,3329.7,3329.6,0.7266021]
[1765371798105,2.14645514,3329.7,3329.6,0.0030021]
[1765371800014,5.35425514,3329.7,3329.6,0.0030021]
[1765371801707,11.35425514,3329.7,3329.6,0.0030021]
[1765371803008,1.3586,3329.2,3329.1,3.2078]
[1765371803312,1.3586,3328.4,3328.3,3.9314]
[1765371803505,0.680815,3328.4,3328.3,4.6609]
[1765371803705,1.373715,3328.4,3328.3,3.9314]
[1765371804014,0.015115,3328.4,3328.3,4.66442575]
[1765371804514,0.015115,3328.4,3328.3,6.8439973]
[1765371805207,0.015115,3328.4,3328.3,4.81463575]
[1765371810109,1.404915,3328.4,3328.3,3.88892575]
[1765371810409,1.404915,3328.4,3328.3,6.6292873]
[1765371810410,0.78740024,3328.4,3328.3,6.6292873]
[1765371810617,0.015115,3328.4,3328.3,6.6292873]
[1765371811215,1.418315,3328.4,3328.3,3.88892575]
[1765371811415,2.19350338,3328.4,3328.3,3.21132575]
[1765371811615,2.19350338,3328.4,3328.3,3.88892575]
[1765371812716,0.79030338,3328.4,3328.3,4.59992575]
[1765371812917,0.015115,3328.4,3328.3,4.59992575]
[1765371814120,0.015115,3328.4,3328.3,4.75013575]
[1765371817114,2.19770165,3329.3,3329.2,0.6776]
[1765371817319,2.19770165,3329.3,3329.2,1.3886]
[1765371817522,2.19770165,3329.3,3328.8,3.2078]
[1765371817824,2.19770165,3329.2,3329.1,0.6776]
[1765371818217,0.79450165,3329.2,3329.1,1.3886]
[1765371818518,1.8413,3329.5,3329.4,0.6776]
[1765371818822,2.63576871,3329.5,3329.4,0.6776]
[1765371819520,2.63576871,3329.5,3329.4,1.3886]
[1765371819723,2.63576871,3329.5,3328.8,3.35799]
[1765371819926,2.19766871,3329.4,3329.3,0.6776]
[1765371820221,1.47356871,3329.4,3329.3,1.3886]
[1765371820419,0.79446871,3329.4,3329.3,1.3886]
[1765371820618,1.4032,3329.7,3329.0,0.54558]
[1765371820825,0.6791,3329.1,3329.0,1.53878]
[1765371821013,0.6791,3329.8,3329.7,1.3886]
[1765371821215,2.19772807,3329.8,3329.7,1.3886]
[1765371821613,2.19772807,3329.8,3329.7,0.6776]
[1765371821822,1.4032,3329.3,3329.2,3.8854]
[1765371822229,1.4032,3329.3,3329.2,3.2078]
[1765371824722,2.19762924,3329.3,3328.6,3.2078]
[1765371824927,0.6791,3328.7,3328.6,4.5964]
[1765371825127,1.829,3329.0,3328.9,0.6776]
[1765371825327,1.829,3329.0,3328.9,1.3886]
[1765371825527,1.1049,3329.0,3328.9,1.3886]
[1765371825827,1.829,3329.0,3328.9,1.3886]
[1765371826429,1.829,3329.0,3328.9,0.6776]
[1765371826936,1.4032,3328.7,3328.6,3.8854]
[1765371827632,1.4032,3328.7,3328.6,3.2078]
[1765371828228,2.1979909,3328.7,3328.6,3.2078]
[1765371829324,2.19814184,3328.7,3328.6,3.2078]
[1765371830932,1.4032,3328.1,3328.0,0.00450674]
[1765371831126,0.4258,3328.0,3327.2,1.53886]
[1765371831332,1.22067987,3328.0,3327.2,1.53886]
[1765371831932,0.6791,3327.3,3327.2,1.53886]
[1765371832130,0.6791,3327.3,3327.2,1.54250497]
[1765371832131,0.00305313,3327.3,3327.2,1.54250497]
[1765371835634,0.68215313,3327.3,3327.2,1.54250497]
[1765371836024,0.00305313,3327.3,3327.2,1.54250497]
[1765371841640,1.42365313,3327.3,3327.2,0.00364497]
[1765371841835,1.42365313,3327.3,3327.2,0.68494497]
[1765371842038,1.42365313,3327.3,3327.2,0.00364497]
[1765371842431,1.8371,3327.0,3326.9,0.68580674]
[1765371842832,0.00305313,3327.3,3327.2,0.6813]
[1765371842833,1.42365313,3327.3,3327.2,0.6813]
[1765371843140,0.00305313,3327.3,3327.2,1.4067]
[1765371843340,0.00305313,3327.3,3327.2,1.41045599]
[1765371843537,0.71435313,3327.3,3327.2,1.41045599]
[1765371843841,0.71435313,3327.3,3327.2,0.68505599]
[1765371843842,1.42365313,3327.3,3327.2,0.68505599]
[1765371844436,0.71435313,3327.3,3327.2,1.41045599]
[1765371845536,1.42365313,3327.3,3327.2,0.00375599]
[1765371846436,1.42365313,3327.3,3326.9,0.00450674]
[1765371846437,1.4206,3326.8,3326.7,3.2078]
[1765371847035,1.4206,3326.8,3326.3,3.3581]
[1765371847231,1.4206,3326.4,3326.3,4.76708715]
[1765371847432,0.7113,3326.4,3326.3,4.76708715]
[1765371848039,1.4206,3326.4,3326.3,3.21008715]
[1765371848341,1.4086,3326.4,3326.3,0.00228715]
[1765371849045,1.4086,3326.4,3326.3,0.67138715]
[1765371850249,1.4086,3326.4,3326.3,0.00228715]
[1765371854441,1.4086,3326.4,3323.9,6.375]
[1765371854442,1.1056,3325.5,3325.4,3.2078]
[1765371854640,1.8314,3325.5,3325.4,4.5819]
[1765371854837,1.1341,3325.5,3325.4,4.5819]
[1765371855046,0.4083,3326.0,3325.4,4.5819]
[1765371855548,1.4231,3325.5,3325.4,4.58853755]
[1765371855748,1.8314,3325.5,3325.4,4.58853755]
[1765371857149,1.8314,3325.5,3325.4,0.00663755]
[1765371857356,2.62311225,3325.5,3325.4,0.00663755]
[1765371857653,2.62311225,3325.5,3324.7,1.52447]
[1765371857654,0.7258,3324.8,3324.7,1.52447]
[1765371858051,1.4231,3324.8,3324.7,0.81947]
[1765371858250,1.4231,3324.8,3324.4,3.2078]
[1765371858551,0.7258,3324.5,3324.4,4.5819]
[1765371858746,0.7258,3324.5,3324.4,4.58488781]
[1765371859449,1.42653227,3324.8,3324.7,0.6691]
[1765371859655,0.00343227,3324.8,3324.7,1.3741]
[1765371859951,1.42653227,3324.8,3324.7,1.3741]
[1765371860256,1.42653227,3324.8,3324.7,0.6691]
[1765371860553,0.00343227,3324.8,3324.7,1.3741]
[1765371860751,0.00343227,3324.8,3324.7,1.52447]
[1765371868361,0.00343227,3324.8,3324.7,7.52447]
[1765371868767,0.00343227,3324.8,3324.7,1.52447]
[1765371871267,3.227e-05,3324.8,3324.7,1.52447]
[1765371871472,4.83131365,3325.9,3325.1,1.3842]
[1765371871678,0.81447554,3325.8,3325.1,1.3842]
[1765371871877,2.24377554,3325.7,3325.6,0.7118]
[1765371872077,2.24377554,3325.7,3325.0,0.54296]
[1765371872274,2.24377554,3325.6,3325.5,0.7118]
[1765371872477,0.4275,3325.5,3325.0,0.54296]
[1765371872780,1.4293,3325.1,3325.0,0.15036]
[1765371873284,1.4293,3325.1,3325.0,0.86216]
[1765371873579,2.24377554,3325.1,3325.0,0.86216]
[1765371875177,1.50977554,3325.1,3325.0,1.53456]
[1765371875680,0.81447554,3325.1,3325.0,1.53456]
[1765371875976,1.4293,3325.4,3325.3,0.7118]
[1765371876182,2.24540962,3325.4,3325.3,0.7118]
[1765371876582,0.6953,3325.1,3325.0,1.53456]
[1765371876786,0.81610962,3325.1,3325.0,1.53456]
[1765371876982,0.81610962,3325.1,3325.0,1.92716]
[1765371877684,0.81610962,3325.1,3325.0,1.53456]
[1765371877885,2.24540962,3325.1,3325.0,1.53456]
[1765371878480,1.51140962,3325.1,3325.0,1.53456]
[1765371879175,0.81610962,3325.1,3325.0,1.92716]
[1765371881986,1.51140962,3325.1,3325.0,1.53456]
[1765371882892,0.81610962,3325.1,3325.0,1.53456]
[1765371883188,1.51140962,3325.1,3325.0,0.15036]
[1765371883379,2.24540962,3325.1,3325.0,0.15036]
[1765371884192,2.24540962,3325.1,3325.0,1.53456]
[1765371884490,0.81610962,3325.1,3325.0,1.53456]
[1765371885083,1.51140962,3325.1,3325.0,1.53456]
[1765371885480,2.24540962,3325.1,3325.0,0.15036]
[1765371885685,1.8568,3325.0,3324.9,3.2078]
[1765371885891,2.67290962,3325.0,3324.9,3.2078]